bitfinex/quotes_SOLUSD_20230701
["timestamp","ask_amount","ask_price","bid_price","bid_amount"]
[1688231996854,78.063,18.341,18.328,23.078]
[1688231998860,23.063,18.341,18.328,23.078]
[1688231999364,20.0,18.342,18.328,23.078]
[1688231999551,55.0,18.341,18.328,131.491]
[1688231999753,55.0,18.342,18.328,131.491]
[1688232000055,20.0,18.341,18.328,131.491]
[1688232000561,43.064,18.341,18.332,23.073]
[1688232005471,24.81,18.34,18.332,23.073]
[1688232005782,23.066,18.339,18.332,23.073]
[1688232010174,43.064,18.341,18.332,23.073]
[1688232012265,23.069,18.337,18.328,23.078]
[1688232014895,55.0,18.336,18.323,97.2073]
[1688232015071,55.0,18.336,18.325,23.082]
[1688232015072,23.072,18.334,18.325,23.082]
[1688232017580,55.0,18.336,18.325,23.082]
[1688232017790,23.072,18.334,18.325,23.082]
[1688232018189,78.07,18.336,18.325,23.082]
[1688232019973,55.0,18.336,18.325,23.082]
[1688232020283,55.0,18.337,18.325,23.082]
[1688232021090,20.0,18.341,18.326,55.0]
[1688232021269,20.0,18.341,18.33,82.485]
[1688232021469,20.0,18.343,18.33,82.485]
[1688232021869,9.09424375,18.342,18.33,82.485]
[1688232022070,20.0,18.341,18.33,82.485]
[1688232022292,9.18708608,18.342,18.33,82.485]
[1688232022581,20.0,18.341,18.33,82.485]
[1688232022782,43.061,18.343,18.33,82.485]
[1688232023073,78.062,18.342,18.33,82.485]
[1688232023267,20.0,18.341,18.33,82.485]
[1688232024187,43.063,18.341,18.33,82.485]
[1688232026273,43.063,18.341,18.33,23.076]
[1688232030493,43.063,18.341,18.33,47.726]
[1688232036310,23.061,18.343,18.33,47.726]
[1688232036591,167.643,18.349,18.331,75.0]
[1688232036897,23.06,18.344,18.335,23.069]
[1688232037291,23.057,18.346,18.335,23.069]
[1688232042607,23.055,18.348,18.335,23.069]
[1688232042802,65.24097474,18.347,18.335,23.069]
[1688232044314,55.0,18.347,18.335,23.069]
[1688232044511,11.16100208,18.347,18.335,23.069]
[1688232044694,13.1879222,18.35,18.34,24.65]
[1688232044893,13.1879222,18.35,18.343,23.06]
[1688232045194,23.048,18.353,18.343,23.06]
[1688232045394,20.0,18.352,18.343,23.06]
[1688232045606,43.049,18.352,18.343,23.06]
[1688232046103,55.0,18.351,18.343,23.06]
[1688232047714,78.051,18.351,18.343,23.06]
[1688232056616,78.051,18.351,18.341,23.061]
[1688232058108,23.051,18.351,18.341,23.061]
[1688232065426,20.0,18.352,18.345,23.058]
[1688232066016,20.0,18.353,18.345,23.058]
[1688232067231,43.048,18.353,18.345,23.058]
[1688232067529,43.048,18.353,18.342,55.0]
[1688232067824,43.048,18.353,18.345,23.057]
[1688232074327,10.82715581,18.352,18.339,23.064]
[1688232074512,23.055,18.348,18.339,23.064]
[1688232077818,55.0,18.351,18.339,23.064]
[1688232078020,9.8872563,18.35,18.339,23.064]
[1688232078232,12.24511238,18.351,18.339,23.064]
[1688232078914,23.053,18.349,18.339,23.064]
[1688232079734,55.0,18.352,18.339,23.064]
[1688232079920,23.052,18.35,18.339,23.064]
[1688232082239,20.0,18.351,18.34,24.73]
[1688232082429,20.0,18.351,18.343,23.06]
[1688232085144,43.05,18.351,18.343,23.06]
[1688232087146,20.0,18.351,18.343,23.06]
[1688232087336,20.0,18.352,18.343,23.06]
[1688232087733,43.049,18.352,18.343,23.06]
[1688232089248,43.049,18.352,18.336,97.482]
[1688232089435,68.36108691,18.351,18.339,23.065]
[1688232089637,23.054,18.348,18.339,23.065]
[1688232090343,55.0,18.351,18.339,23.065]
[1688232090543,9.54218685,18.35,18.34,24.73]
[1688232090744,20.0,18.352,18.343,23.06]
[1688232091452,23.048,18.357,18.343,23.06]
[1688232091652,23.048,18.357,18.344,55.0]
[1688232091653,10.57671981,18.356,18.344,55.0]
[1688232091833,26.97519224,18.364,18.347,82.406]
[1688232092151,34.25397366,18.363,18.347,82.406]
[1688232092345,23.038,18.361,18.347,82.406]
[1688232092559,23.038,18.361,18.347,23.054]
[1688232092738,35.03501386,18.36,18.347,23.054]
[1688232092947,23.041,18.359,18.347,23.054]
[1688232093134,78.041,18.359,18.347,23.054]
[1688232096551,23.041,18.359,18.347,23.054]
[1688232096742,23.041,18.359,18.348,55.0]
[1688232097052,23.041,18.359,18.347,23.054]
[1688232097937,55.0,18.358,18.347,23.054]
[1688232098154,23.043,18.357,18.347,23.054]
[1688232100760,55.0,18.358,18.347,82.409]
[1688232101858,78.042,18.358,18.347,82.409]
[1688232103155,78.042,18.358,18.347,23.054]
[1688232103659,23.046,18.355,18.347,23.054]
[1688232103879,55.0,18.354,18.347,23.054]
[1688232107559,54.5,18.354,18.347,23.054]
[1688232108266,23.044,18.356,18.347,23.054]
[1688232109964,55.0,18.355,18.347,23.054]
[1688232112669,55.0,18.356,18.347,23.054]
[1688232113363,9.09135402,18.358,18.347,82.409]
[1688232114664,55.0,18.357,18.347,82.409]
[1688232114869,55.0,18.358,18.347,82.409]
[1688232117268,78.042,18.358,18.347,82.409]
[1688232117870,78.042,18.358,18.347,23.054]
[1688232118055,10.40061477,18.357,18.336,108.364]
[1688232118249,24.81,18.35,18.339,23.064]
[1688232118465,23.055,18.347,18.339,23.064]
[1688232119268,78.056,18.346,18.339,23.064]
[1688232119860,23.056,18.346,18.339,23.064]
[1688232120070,55.0,18.345,18.339,23.064]
[1688232121265,23.056,18.346,18.339,23.064]
[1688232121469,55.0,18.345,18.339,23.064]
[1688232123182,55.0,18.346,18.339,23.064]
[1688232125277,55.0,18.346,18.333,99.9175]
[1688232125458,55.0,18.346,18.339,23.064]
[1688232125459,9.44453245,18.345,18.339,23.064]
[1688232125760,55.0,18.346,18.339,23.064]
[1688232126077,78.056,18.346,18.339,23.064]
[1688232128373,23.054,18.348,18.339,23.064]
[1688232128575,55.0,18.347,18.339,23.064]
[1688232130783,78.055,18.347,18.339,23.064]
[1688232131766,78.055,18.347,18.337,23.067]
[1688232147279,23.052,18.35,18.337,23.067]
[1688232147480,9.43299651,18.349,18.337,23.067]
[1688232148497,55.0,18.348,18.337,23.067]
[1688232148997,78.053,18.349,18.337,23.067]
[1688232149200,9.14368261,18.348,18.337,23.067]
[1688232149490,55.0,18.347,18.337,23.067]
[1688232149876,55.0,18.348,18.337,23.067]
[1688232150894,78.054,18.348,18.337,23.067]
[1688232159499,23.054,18.348,18.337,23.067]
[1688232168805,23.052,18.35,18.337,23.067]
[1688232169001,9.2702158,18.349,18.34,24.73]
[1688232169307,23.052,18.35,18.343,23.06]
[1688232172911,23.052,18.35,18.341,23.061]
[1688232177108,167.559,18.358,18.341,23.061]
[1688232177416,23.044,18.356,18.342,75.0]
[1688232177625,23.044,18.356,18.346,23.056]
[1688232178514,23.042,18.358,18.346,23.056]
[1688232178716,11.27323848,18.357,18.346,23.056]
[1688232179306,55.0,18.356,18.346,23.056]
[1688232179705,55.0,18.357,18.346,23.056]
[1688232180021,10.54787178,18.356,18.35,24.73]
[1688232180311,13.32657966,18.361,18.351,23.049]
[1688232180619,13.32657966,18.364,18.351,23.049]
[1688232180917,20.0,18.363,18.351,23.049]
[1688232181599,20.0,18.364,18.351,23.049]
[1688232181921,9.41518015,18.363,18.351,23.049]
[1688232182124,20.0,18.362,18.351,23.049]
[1688232182914,20.0,18.363,18.351,23.049]
[1688232186615,43.035,18.363,18.351,23.049]
[1688232187820,55.0,18.362,18.351,23.049]
[1688232188123,43.038,18.361,18.351,23.049]
[1688232190422,55.0,18.36,18.351,23.049]
[1688232194327,78.039,18.36,18.351,23.049]
[1688232194931,23.039,18.36,18.351,23.049]
[1688232195423,20.0,18.361,18.351,23.049]
[1688232196310,43.038,18.361,18.351,23.049]
[1688232197829,20.0,18.361,18.351,23.049]
[1688232198044,23.038,18.361,18.351,23.049]
[1688232198328,23.036,18.362,18.351,23.049]
[1688232198532,20.0,18.361,18.351,23.049]
[1688232200431,20.0,18.361,18.352,55.0]
[1688232200631,20.0,18.361,18.354,23.046]
[1688232204235,43.038,18.361,18.354,23.046]
[1688232209023,43.038,18.361,18.35,121.263]
[1688232210437,43.038,18.361,18.35,144.314]
[1688232214131,43.038,18.361,18.35,119.584]
[1688232216461,43.038,18.361,18.35,144.234]
[1688232217022,9.72891642,18.366,18.351,55.0]
[1688232217230,18.14865131,18.369,18.352,20.0]
[1688232217539,18.14865131,18.369,18.356,131.29]
[1688232217932,41.17665131,18.369,18.357,55.0]
[1688232218257,41.17665131,18.369,18.36,23.038]
[1688232218258,23.028,18.369,18.36,23.038]
[1688232219533,23.025,18.371,18.36,23.038]
[1688232219742,23.027,18.37,18.36,23.038]
[1688232225244,23.027,18.37,18.358,92.9822]
[1688232225954,23.027,18.37,18.359,23.039]
[1688232230557,23.026,18.371,18.359,23.039]
[1688232230859,78.027,18.37,18.359,23.039]
[1688232231560,102.837,18.37,18.359,23.039]
[1688232232151,102.837,18.37,18.358,92.9822]
[1688232232342,9.2369939,18.369,18.358,92.9822]
[1688232232651,78.03,18.368,18.359,23.04]
[1688232236054,78.03,18.368,18.358,92.9822]
[1688232236445,78.03,18.368,18.354,59.33]
[1688232236655,11.17124302,18.367,18.356,23.043]
[1688232236958,23.034,18.364,18.35,83.992]
[1688232237145,23.034,18.364,18.351,20.0]
[1688232237449,55.0,18.363,18.351,20.0]
[1688232237855,55.0,18.363,18.355,23.044]
[1688232241475,47.837,18.37,18.355,23.044]
[1688232241649,15.02581909,18.368,18.355,23.044]
[1688232241850,55.0,18.367,18.355,23.044]
[1688232242364,15.02581909,18.366,18.355,23.044]
[1688232242550,55.0,18.365,18.355,23.044]
[1688232244045,24.81,18.37,18.355,23.044]
[1688232244245,17.24405374,18.369,18.355,33.88119922]
[1688232245348,55.0,18.368,18.355,33.88119922]
[1688232245542,17.24405374,18.367,18.355,33.88119922]
[1688232245748,17.24405374,18.367,18.356,55.0]
[1688232245958,17.24405374,18.369,18.359,82.356]
[1688232246159,24.81,18.37,18.359,82.356]
[1688232248362,9.31062057,18.369,18.359,82.356]
[1688232249671,24.81,18.37,18.359,82.356]
[1688232250051,9.15881886,18.369,18.359,82.356]
[1688232251271,24.81,18.37,18.359,82.356]
[1688232251570,10.10344617,18.369,18.359,82.356]
[1688232251971,47.836,18.37,18.359,82.356]
[1688232252374,47.836,18.37,18.359,23.04]
[1688232252555,10.89198906,18.369,18.359,23.04]
[1688232252864,23.028,18.369,18.359,23.04]
[1688232254053,33.44630514,18.367,18.359,23.04]
[1688232254251,23.031,18.367,18.355,10.83719922]
[1688232254454,23.031,18.367,18.354,94.3481]
[1688232254455,23.035,18.363,18.356,23.043]
[1688232254674,23.035,18.363,18.354,117.3931]
[1688232257265,55.0,18.366,18.354,117.3931]
[1688232257480,11.28803172,18.364,18.354,117.3931]
[1688232266787,15.12081283,18.366,18.354,117.3931]
[1688232267082,17.33094158,18.369,18.358,23.041]
[1688232269071,40.35894158,18.369,18.358,23.041]
[1688232269589,55.0,18.368,18.358,23.041]
[1688232269770,40.36194158,18.367,18.358,23.041]
[1688232272590,55.0,18.366,18.358,23.041]
[1688232272790,17.33094158,18.365,18.358,23.041]
[1688232272990,78.032,18.366,18.358,23.041]
[1688232282896,11.5782855,18.367,18.358,23.041]
[1688232283095,55.0,18.366,18.358,23.041]
[1688232285700,74.62478385,18.37,18.358,23.041]
[1688232285894,69.18892693,18.369,18.358,23.041]
[1688232286196,92.21692693,18.369,18.358,23.041]
[1688232296902,37.21692693,18.369,18.358,23.041]
[1688232297306,23.028,18.369,18.358,23.041]
[1688232308406,14.18892693,18.368,18.358,23.041]
[1688232308713,23.032,18.366,18.358,23.041]
[1688232311418,23.03,18.368,18.358,23.041]
[1688232311715,10.14391993,18.367,18.358,23.041]
[1688232315623,13.06275067,18.369,18.36,24.73]
[1688232315816,13.06275067,18.369,18.362,23.035]
[1688232316119,23.027,18.37,18.362,23.035]
[1688232321704,23.027,18.37,18.36,24.73]
[1688232321912,15.00959018,18.369,18.36,23.038]
[1688232322110,38.03759018,18.369,18.36,23.038]
[1688232322312,23.028,18.369,18.36,23.038]
[1688232324527,15.00959018,18.373,18.36,47.688]
[1688232324729,15.00959018,18.373,18.361,172.667]
[1688232324912,23.02,18.375,18.364,23.033]
[1688232328324,25.3516714,18.376,18.364,23.033]
[1688232328631,48.3706714,18.376,18.364,23.033]
[1688232331426,25.3516714,18.376,18.364,23.033]
[1688232331626,48.3696714,18.377,18.364,23.033]
[1688232331925,55.0,18.376,18.364,23.033]
[1688232332228,25.3516714,18.375,18.364,23.033]
[1688232332432,25.3516714,18.376,18.364,23.033]
[1688232336226,25.3516714,18.376,18.364,142.07019922]
[1688232336433,26.95289918,18.384,18.365,65.83719922]
[1688232336734,23.013,18.381,18.37,23.025]
[1688232336931,26.95289918,18.38,18.37,23.025]
[1688232337840,49.96689918,18.38,18.37,23.025]
[1688232338018,19.46689918,18.384,18.371,1.14062459]
[1688232338221,20.0,18.383,18.371,1.14062459]
[1688232338535,19.46689918,18.382,18.368,11.23744831]
[1688232338729,20.0,18.381,18.368,11.23744831]
[1688232338928,19.46689918,18.38,18.368,11.23744831]
[1688232339938,42.48089918,18.38,18.372,23.023]
[1688232340138,23.014,18.38,18.372,23.023]
[1688232348130,47.824,18.38,18.369,23.026]
[1688232348446,23.018,18.377,18.369,23.026]
[1688232348836,12.6346981,18.376,18.362,11.61039562]
[1688232349048,55.0,18.375,18.363,20.0]
[1688232349229,23.024,18.372,18.363,43.034]
[1688232349430,23.024,18.372,18.363,20.0]
[1688232349637,55.0,18.371,18.363,20.0]
[1688232349938,23.028,18.369,18.362,20.0]
[1688232351246,23.028,18.369,18.362,43.035]
[1688232351440,78.026,18.371,18.362,43.035]
[1688232353433,55.0,18.371,18.362,43.035]
[1688232353634,55.0,18.372,18.362,43.035]
[1688232353948,4.0501358,18.371,18.362,43.035]
[1688232356652,55.0,18.372,18.363,1.04088743]
[1688232356850,24.81,18.37,18.363,1.04088743]
[1688232357053,55.0,18.369,18.363,23.035]
[1688232357241,1.65065493,18.368,18.361,23.036]
[1688232357642,23.029,18.368,18.361,23.036]
[1688232357850,55.0,18.367,18.354,59.332]
[1688232358044,8.72486456,18.366,18.355,4.88111826]
[1688232358245,55.0,18.365,18.355,4.88111826]
[1688232358652,8.72486456,18.364,18.355,4.88111826]
[1688232358857,55.0,18.365,18.36,23.039]
[1688232359449,55.0,18.365,18.357,23.041]
[1688232359769,2.64521245,18.364,18.357,23.042]
[1688232360061,78.033,18.365,18.357,23.042]
[1688232360949,55.0,18.365,18.357,23.042]
[1688232361250,3.85644729,18.365,18.357,23.042]
[1688232363948,23.035,18.363,18.355,23.045]
[1688232364262,3.85644729,18.365,18.345,59.361]
[1688232364263,23.04,18.359,18.345,59.361]
[1688232364465,23.04,18.359,18.346,9.79131507]
[1688232364650,65.00069898,18.358,18.346,9.79131507]
[1688232364851,23.043,18.357,18.349,23.051]
[1688232365050,55.0,18.356,18.349,23.051]
[1688232366261,78.044,18.356,18.349,23.051]
[1688232367759,78.044,18.356,18.347,23.055]
[1688232367959,1.90260178,18.355,18.347,23.055]
[1688232368259,78.045,18.356,18.347,23.055]
[1688232368463,2.49455362,18.355,18.347,23.055]
[1688232369263,55.0,18.355,18.347,23.055]
[1688232369651,78.045,18.355,18.347,23.055]
[1688232372864,77.545,18.355,18.347,23.055]
[1688232374357,77.545,18.355,18.345,23.056]
[1688232374557,1.64783367,18.354,18.345,23.056]
[1688232374866,24.69483367,18.354,18.345,23.056]
[1688232375071,55.0,18.353,18.345,23.056]
[1688232376468,78.048,18.353,18.345,23.056]
[1688232378266,78.048,18.353,18.336,10.83719922]
[1688232378267,24.81,18.35,18.336,10.83719922]
[1688232378573,66.367775,18.349,18.337,23.067]
[1688232379163,66.367775,18.349,18.338,16.45625944]
[1688232379364,89.420775,18.349,18.34,23.063]
[1688232388871,34.420775,18.349,18.34,23.063]
[1688232389974,55.0,18.348,18.34,23.063]
[1688232390177,11.367775,18.347,18.34,23.063]
[1688232390472,55.0,18.348,18.34,23.063]
[1688232390674,4.59348805,18.348,18.34,23.063]
[1688232391884,4.59348805,18.348,18.34,47.793]
[1688232392086,10.59836352,18.352,18.341,2.73883974]
[1688232392386,43.051,18.351,18.342,23.06]
[1688232393488,55.0,18.35,18.342,23.06]
[1688232393690,16.29539702,18.349,18.342,23.06]
[1688232394684,23.053,18.349,18.34,24.73]
[1688232394887,27.00417287,18.347,18.34,24.73]
[1688232395077,23.056,18.347,18.34,24.73]
[1688232396574,23.056,18.347,18.34,47.794]
[1688232397196,55.0,18.346,18.34,47.794]
[1688232397386,55.0,18.346,18.34,23.064]
[1688232397571,55.0,18.346,18.334,91.8129]
[1688232397771,55.0,18.346,18.338,23.065]
[1688232399792,78.056,18.346,18.338,23.065]
[1688232409301,7.54697146,18.345,18.335,2.44235618]
[1688232409485,23.062,18.342,18.334,114.8839]
[1688232409685,55.0,18.344,18.334,114.8839]
[1688232409686,78.063,18.341,18.334,114.8839]
[1688232409880,23.063,18.341,18.334,114.8839]
[1688232413180,24.81,18.34,18.324,59.428]
[1688232413382,23.068,18.337,18.329,23.077]
[1688232413584,55.0,18.336,18.329,23.077]
[1688232416096,78.069,18.336,18.326,23.081]
[1688232416296,78.069,18.336,18.328,23.078]
[1688232419506,78.069,18.336,18.327,23.079]
[1688232423596,78.069,18.336,18.325,92.9946]
[1688232423802,78.069,18.336,18.325,116.0766]
[1688232424300,78.069,18.336,18.325,23.082]
[1688232424494,3.27238185,18.335,18.325,23.082]
[1688232424695,23.074,18.332,18.325,23.082]
[1688232424896,3.27238185,18.335,18.325,23.082]
[1688232425492,55.0,18.336,18.325,23.082]
[1688232425998,23.072,18.334,18.325,23.082]
[1688232426308,55.0,18.333,18.325,23.082]
[1688232427008,78.073,18.333,18.325,23.082]
[1688232427993,23.073,18.333,18.325,23.082]
[1688232428708,55.0,18.332,18.325,23.082]
[1688232429310,84.111,18.339,18.325,23.082]
[1688232429491,62.91053035,18.338,18.325,23.082]
[1688232429693,23.068,18.337,18.325,23.082]
[1688232430010,55.0,18.336,18.325,23.082]
[1688232430610,78.069,18.336,18.325,23.082]
[1688232438097,23.069,18.336,18.325,23.082]
[1688232439806,23.067,18.338,18.325,23.082]
[1688232439997,55.0,18.337,18.326,1.70812821]
[1688232440198,55.0,18.337,18.329,23.077]
[1688232440502,78.068,18.337,18.329,23.077]
[1688232442619,78.068,18.337,18.327,23.079]
[1688232443614,1.90161011,18.336,18.325,23.082]
[1688232443912,23.073,18.334,18.325,23.082]
[1688232444419,55.0,18.333,18.325,23.082]
[1688232444602,78.073,18.333,18.325,23.082]
[1688232446921,23.07,18.335,18.325,23.082]
[1688232450025,55.0,18.334,18.325,23.082]
[1688232452724,78.072,18.334,18.325,23.082]
[1688232453618,55.0,18.334,18.325,23.082]
[1688232454124,78.071,18.334,18.325,23.082]
[1688232456301,55.0,18.334,18.325,23.082]
[1688232458316,78.072,18.334,18.325,23.082]
[1688232461719,23.072,18.334,18.325,23.082]
[1688232461919,47.875,18.34,18.325,23.082]
[1688232462221,60.73383076,18.339,18.329,23.077]
[1688232462401,78.065,18.339,18.329,23.077]
[1688232468918,78.065,18.339,18.327,23.08]
[1688232469230,4.00492804,18.338,18.328,23.078]
[1688232469524,27.07192804,18.338,18.328,23.078]
[1688232469824,55.0,18.337,18.328,23.078]
[1688232470010,23.068,18.337,18.328,23.078]
[1688232470420,23.065,18.339,18.328,23.078]
[1688232470623,59.363,18.345,18.328,23.078]
[1688232470817,29.72607724,18.344,18.329,5.57357721]
[1688232471017,23.064,18.34,18.329,5.57357721]
[1688232471325,9.72607724,18.339,18.326,6.51525682]
[1688232471510,78.067,18.338,18.329,23.077]
[1688232471828,23.066,18.339,18.329,23.077]
[1688232472129,23.063,18.341,18.33,24.65]
[1688232472425,55.0,18.34,18.333,23.072]
[1688232472611,78.064,18.34,18.333,23.072]
[1688232473127,23.064,18.34,18.333,23.072]
[1688232473320,52.93559388,18.344,18.333,23.072]
[1688232473528,23.062,18.342,18.333,23.072]
[1688232474012,20.0,18.341,18.333,23.072]
[1688232474213,43.063,18.341,18.333,23.072]
[1688232475124,43.063,18.341,18.331,23.074]
[1688232475315,43.063,18.341,18.33,24.65]
[1688232475514,23.068,18.337,18.329,23.077]
[1688232476510,23.068,18.337,18.326,10.83719922]
[1688232476705,23.068,18.337,18.329,23.077]
[1688232482528,55.0,18.34,18.329,23.077]
[1688232483831,78.064,18.34,18.329,23.077]
[1688232484933,78.064,18.34,18.327,23.079]
[1688232485138,4.45727205,18.339,18.326,10.83719922]
[1688232485339,23.068,18.337,18.328,23.078]
[1688232487838,23.066,18.339,18.328,23.078]
[1688232496144,20.0,18.341,18.328,23.078]
[1688232496348,78.064,18.34,18.329,1.97509127]
[1688232496535,78.064,18.34,18.331,23.075]
[1688232499149,78.064,18.34,18.329,23.077]
[1688232499339,1.97491411,18.339,18.329,23.077]
[1688232499541,23.068,18.337,18.329,23.077]
[1688232500939,23.066,18.339,18.329,23.077]
[1688232501526,55.0,18.34,18.329,23.077]
[1688232501731,28.91750842,18.342,18.329,23.077]
[1688232501931,23.056,18.347,18.333,23.072]
[1688232502335,23.056,18.347,18.334,10.24119106]
[1688232502541,23.056,18.347,18.337,23.066]
[1688232504534,55.0,18.346,18.337,23.066]
[1688232505137,78.056,18.346,18.337,23.066]
[1688232507750,55.0,18.346,18.337,23.066]
[1688232508050,55.0,18.347,18.337,23.066]
[1688232520651,23.056,18.346,18.33,24.73]
[1688232520969,24.81,18.34,18.322,94.4157]
[1688232521271,23.071,18.335,18.323,23.084]
[1688232521470,55.0,18.334,18.323,23.084]
[1688232521770,23.074,18.332,18.323,23.084]
[1688232522072,55.0,18.331,18.323,23.084]
[1688232526679,55.0,18.331,18.323,131.526]
[1688232527679,10.67165947,18.339,18.324,4.90318931]
[1688232527851,55.0,18.338,18.328,23.078]
[1688232529370,78.067,18.338,18.328,23.078]
[1688232531076,1.50681996,18.337,18.328,23.078]
[1688232531260,23.07,18.335,18.322,59.436]
[1688232531461,56.81515663,18.334,18.323,21.10050059]
[1688232531665,55.0,18.334,18.323,20.0]
[1688232532962,55.0,18.334,18.326,23.081]
[1688232533280,78.073,18.334,18.326,23.081]
[1688232533661,55.0,18.334,18.326,23.081]
[1688232534566,78.072,18.334,18.326,23.081]
[1688232534764,55.0,18.334,18.326,23.081]
[1688232536687,55.0,18.335,18.326,23.081]
[1688232537184,55.0,18.336,18.326,23.081]
[1688232537761,78.07,18.336,18.326,23.081]
[1688232538169,78.069,18.336,18.326,23.081]
[1688232548084,51.93935002,18.34,18.326,23.081]
[1688232548392,8.05638353,18.339,18.326,93.34119922]
[1688232548592,8.05638353,18.341,18.327,71.58547149]
[1688232548890,8.05638353,18.341,18.331,23.075]
[1688232549086,23.062,18.342,18.331,23.075]
[1688232549288,20.0,18.341,18.331,23.075]
[1688232549588,55.0,18.34,18.331,23.075]
[1688232550391,78.064,18.34,18.331,23.075]
[1688232552291,20.0,18.341,18.331,23.075]
[1688232553780,23.062,18.342,18.331,23.075]
[1688232553981,20.0,18.341,18.332,55.0]
[1688232554279,20.0,18.341,18.334,23.071]
[1688232558195,43.063,18.341,18.334,23.071]
[1688232561398,23.063,18.341,18.334,23.071]
[1688232563407,23.061,18.343,18.334,23.071]
[1688232567309,195.38010281,18.349,18.334,23.071]
[1688232567515,23.058,18.345,18.334,23.071]
[1688232567809,23.061,18.343,18.334,23.071]
[1688232570695,63.28559388,18.348,18.334,23.071]
[1688232570897,23.058,18.345,18.334,23.071]
[1688232571203,55.0,18.344,18.334,23.071]
[1688232572895,78.059,18.344,18.334,23.071]
[1688232574310,3.8718826,18.345,18.334,23.071]
[1688232574503,81.9298826,18.345,18.334,23.071]
[1688232574907,58.8718826,18.345,18.334,23.071]
[1688232575094,55.0,18.345,18.334,23.071]
[1688232575614,5.59685153,18.347,18.334,23.071]
[1688232575808,5.59685153,18.347,18.335,1.00725707]
[1688232576207,28.65285153,18.347,18.338,23.066]
[1688232576404,23.056,18.347,18.338,23.066]
[1688232576912,78.057,18.346,18.338,23.066]
[1688232577812,8.28559388,18.348,18.338,23.066]
[1688232578012,27.73610281,18.349,18.338,23.066]
[1688232578202,79.80808475,18.348,18.338,23.066]
[1688232578402,78.054,18.348,18.338,23.066]
[1688232580811,2.09055968,18.347,18.338,23.066]
[1688232580999,25.14655968,18.347,18.338,23.066]
[1688232581200,23.056,18.347,18.338,23.066]
[1688232584615,5.42773278,18.349,18.338,23.066]
[1688232584822,55.0,18.348,18.338,23.066]
[1688232585498,23.057,18.346,18.338,23.066]
[1688232591024,23.055,18.347,18.338,23.066]